fUST/lending_fUST_20250929
["ID","MTS","AMOUNT","RATE_DAILY","PERIOD"]
[388333927,1759102250134,-589.68,0.00028445,7]
[388333928,1759102250145,-1024.69,0.00028445,7]
[388333929,1759102250154,-1082.2,0.00028445,7]
[388333930,1759102250164,-522.93,0.00028445,7]
[388333931,1759102250173,-480.0,0.00028445,7]
[388333932,1759102250182,-269.73135614,0.00028445,7]
[388333933,1759102250191,-480.0,0.00028445,7]
[388333934,1759102250200,-615.80219978,0.00028445,7]
[388333935,1759102250210,-480.0,0.00028445,7]
[388333936,1759102250220,-568.05,0.00028445,7]
[388333937,1759102250229,-480.0,0.00028445,7]
[388333938,1759102250238,-480.0,0.00028445,7]
[388333939,1759102250248,-521.59,0.00028445,7]
[388333940,1759102250257,-480.0,0.00028445,7]
[388333941,1759102250266,-480.0,0.00028445,7]
[388333942,1759102250276,-480.0,0.00028445,7]
[388333943,1759102250286,-480.0,0.00028445,7]
[388333944,1759102250296,-777.96,0.00028445,7]
[388333945,1759102250305,-1056.97,0.00028445,7]
[388333946,1759102250315,-500.0,0.00028445,7]
[388333947,1759102250324,-611.88,0.00028445,7]
[388333948,1759102250333,-544.19,0.00028445,7]
[388333949,1759102250343,-480.0,0.00028445,7]
[388333950,1759102250353,-480.0,0.00028445,7]
[388333951,1759102250364,-336.68373234,0.00028445,7]
[388333952,1759102250373,-480.0,0.00028445,7]
[388333953,1759102250382,-480.0,0.00028445,7]
[388333954,1759102250392,-480.0,0.00028445,7]
[388333955,1759102250401,-480.0,0.00028445,7]
[388333956,1759102250411,-480.0,0.00028445,7]
[388333957,1759102250420,-645.96,0.00028445,7]
[388333958,1759102250429,-480.0,0.00028445,7]
[388333960,1759102250438,-480.0,0.00028445,7]
[388333961,1759102250447,-480.0,0.00028445,7]
[388333962,1759102250459,-589.84,0.00028445,7]
[388333963,1759102250468,-571.22,0.00028445,7]
[388333964,1759102250477,-480.0,0.00028445,7]
[388333965,1759102250486,-480.0,0.00028445,7]
[388333966,1759102250495,-480.0,0.00028445,7]
[388333967,1759102250505,-480.0,0.00028445,7]
[388333968,1759102250514,-480.0,0.00028445,7]
[388333969,1759102250523,-480.0,0.00028445,7]
[388333970,1759102250535,-480.0,0.00028445,7]
[388333971,1759102250544,-480.0,0.00028445,7]
[388333972,1759102250553,-480.0,0.00028445,7]
[388333973,1759102250562,-480.0,0.00028445,7]
[388333974,1759102250571,-480.0,0.00028445,7]
[388333975,1759102250581,-198.92828835,0.00028445,7]
[388333978,1759102251079,-500.0,0.00025989,2]
[388333979,1759102251088,-151.0,0.00026977,7]
[388333980,1759102251098,-2853.730753,0.00026977,7]
[388333981,1759102251108,-2853.730753,0.00026978,7]
[388333982,1759102251117,-151.0,0.00026978,7]
[388333983,1759102251127,-2853.730753,0.0002698,7]
[388333984,1759102251136,-151.0,0.0002698,7]
[388333985,1759102251145,-480.0,0.00027397,7]
[388333986,1759102251154,-2853.730753,0.00027397,7]
[388333987,1759102251163,-2853.730753,0.00027481,7]
[388333988,1759102251172,-480.0,0.00027671,7]
[388333989,1759102251182,-480.0,0.00027945,7]
[388333990,1759102251190,-480.0,0.00027945,7]
[388333991,1759102251200,-4468.53,0.00028108,7]
[388333992,1759102251209,-480.0,0.00028219,7]
[388333993,1759102251219,-480.0,0.00028219,7]
[388333994,1759102251228,-4468.53,0.00028382,7]
[388333995,1759102251237,-281.07171165,0.00028445,7]
[388333996,1759102251246,-480.0,0.00028445,7]
[388333997,1759102251255,-589.53,0.00028445,7]
[388333998,1759102251265,-480.0,0.00028445,7]
[388333999,1759102251274,-652.92,0.00028445,7]
[388334000,1759102251283,-480.0,0.00028445,7]
[388334001,1759102251293,-480.0,0.00028445,7]
[388334002,1759102251303,-480.0,0.00028445,7]
[388334003,1759102251313,-704.85,0.00028445,7]
[388334004,1759102251322,-480.0,0.00028445,7]
[388334005,1759102251331,-480.0,0.00028445,7]
[388334006,1759102251339,-677.46,0.00028445,7]
[388334007,1759102251349,-480.0,0.00028445,7]
[388334008,1759102251359,-586.96,0.00028445,7]
[388334009,1759102251368,-480.0,0.00028445,7]
[388334010,1759102251377,-480.0,0.00028445,7]
[388334011,1759102251387,-480.0,0.00028445,7]
[388334012,1759102251396,-1258.07,0.00028445,7]
[388334013,1759102251405,-1308.78,0.00028445,7]
[388334014,1759102251415,-480.0,0.00028445,7]
[388334015,1759102251425,-480.0,0.00028445,7]
[388334016,1759102251434,-480.0,0.00028445,7]
[388334017,1759102251444,-959.65,0.00028445,7]
[388334018,1759102251455,-540.81,0.00028445,7]
[388334019,1759102251464,-244.07955002,0.00028445,7]
[388334020,1759102251476,-2368.04044998,0.00028445,7]
[388334021,1759102251486,-480.0,0.00028445,7]
[388334022,1759102251496,-662.39,0.00028445,7]
[388334023,1759102251505,-480.0,0.00028445,7]
[388334024,1759102251514,-480.0,0.00028445,7]
[388334025,1759102251524,-2112.02,0.00028445,7]
[388334026,1759102251533,-201.7797818,0.00028445,7]
[388334027,1759102251542,-833.01,0.00028445,7]
[388334028,1759102251552,-480.0,0.00028445,7]
[388334029,1759102251561,-480.0,0.00028445,7]
[388334030,1759102251571,-480.0,0.00028445,7]
[388334031,1759102251580,-480.0,0.00028445,7]
[388334032,1759102251589,-511.94,0.00028445,7]
[388334033,1759102251598,-1135.75,0.00028445,7]
[388334034,1759102251607,-9648.91,0.00028445,7]
[388334035,1759102251616,-480.0,0.00028445,7]
[388334036,1759102251626,-1833.7,0.00028445,7]
[388334037,1759102251634,-157.48438367,0.00028445,7]
[388334038,1759102251643,-673.81,0.00028445,7]
[388334039,1759102251653,-480.0,0.00028445,7]
[388334040,1759102251662,-5118.65,0.00028445,7]
[388334041,1759102251671,-480.0,0.00028445,7]
[388334042,1759102251680,-480.0,0.00028445,7]
[388334043,1759102251689,-480.0,0.00028445,7]
[388334044,1759102251698,-790.22,0.00028445,7]
[388334045,1759102251707,-480.0,0.00028445,7]
[388334046,1759102251716,-830.12,0.00028445,7]
[388334047,1759102251725,-480.0,0.00028445,7]
[388334048,1759102251734,-480.0,0.00028445,7]
[388334049,1759102251744,-480.0,0.00028445,7]
[388334050,1759102251753,-4908.66,0.00028445,7]
[388334051,1759102251762,-889.6,0.00028446,7]
[388334052,1759102251771,-480.0,0.00028446,7]
[388334053,1759102251780,-480.0,0.00028446,7]
[388334054,1759102251790,-480.0,0.00028446,7]
[388334055,1759102251799,-480.0,0.00028446,7]
[388334056,1759102251808,-285.10279947,0.00028446,7]
[388334057,1759102251818,-692.06,0.00028447,7]
[388334058,1759102251827,-757.57,0.00028447,7]
[388334059,1759102251837,-480.0,0.00028447,7]
[388334060,1759102251846,-480.0,0.00028447,7]
[388334061,1759102251856,-193.77132089,0.00028447,7]
[388334062,1759102251865,-2478.15,0.00028447,7]
[388334063,1759102251874,-480.0,0.00028447,7]
[388334064,1759102251883,-480.0,0.00028447,7]
[388334065,1759102251891,-480.0,0.00028493,7]
[388334066,1759102251900,-985.9,0.00028493,7]
[388334067,1759102251910,-944.82,0.00028493,7]
[388334068,1759102251919,-480.0,0.00028493,7]
[388334069,1759102251927,-480.0,0.00028493,7]
[388334070,1759102251936,-480.0,0.00028493,7]
[388334071,1759102251946,-1126.0,0.00028493,7]
[388334072,1759102251955,-1794.73,0.00028493,7]
[388334073,1759102251964,-480.0,0.00028493,7]
[388334074,1759102251973,-2491.11,0.00028493,7]
[388334075,1759102251983,-5300.18,0.00028493,7]
[388334076,1759102251992,-760.45,0.00028493,7]
[388334077,1759102252001,-480.0,0.00028493,7]
[388334078,1759102252010,-480.0,0.00028493,7]
[388334079,1759102252020,-480.0,0.00028493,7]
[388334080,1759102252029,-721.51,0.00028493,7]
[388334081,1759102252039,-22.89123021,0.00028493,7]
[388334082,1759102256086,4408.08,0.00025205,2]
[388334086,1759102261092,-500.0,0.00025989,2]
[388334087,1759102261120,-500.0,0.00025989,2]
[388334088,1759102261146,-500.0,0.00025989,2]
[388334089,1759102261173,-520.56384895,0.00025989,2]
[388334090,1759102261199,-500.0,0.00025989,2]
[388334091,1759102261226,-500.0,0.00025989,2]
[388334092,1759102261254,-500.0,0.00025989,2]
[388334093,1759102261280,-500.0,0.00025989,2]
[388334094,1759102261307,-500.0,0.00025989,2]
[388334095,1759102261334,-458.8823021,0.00025989,2]
[388334097,1759102270568,-300.0,0.00025988,2]
[388334098,1759102270596,-41.1176979,0.00025989,2]
[388334099,1759102270625,-500.0,0.00025989,2]
[388334100,1759102270652,-488.01586244,0.00025989,2]
[388334101,1759102270679,-500.0,0.00025989,2]
[388334102,1759102270707,-500.0,0.00025989,2]
[388334103,1759102270734,-500.0,0.00025989,2]
[388334104,1759102270761,-500.0,0.00025989,2]
[388334105,1759102270789,-500.0,0.00025989,2]
[388334106,1759102270816,-500.0,0.00025989,2]
[388334107,1759102270843,-500.0,0.00025989,2]
[388334108,1759102271202,-500.0,0.00025989,2]
[388334109,1759102271231,-500.0,0.00025989,2]
[388334110,1759102271260,-500.0,0.00025989,2]
[388334111,1759102271289,-500.0,0.00025989,2]
[388334112,1759102271316,-500.0,0.00025989,2]
[388334113,1759102271344,-500.0,0.00025989,2]
[388334114,1759102271374,-500.0,0.00025989,2]
[388334115,1759102271402,-487.9008488,0.00025989,2]
[388334116,1759102271429,-500.0,0.00025989,2]
[388334117,1759102271457,-500.0,0.00025989,2]
[388334120,1759102290610,-500.0,0.00025989,2]
[388334121,1759102290640,-210.42521209,0.00025989,2]
[388334122,1759102290669,-500.0,0.00025989,2]
[388334123,1759102290698,-500.0,0.00025989,2]
[388334124,1759102290726,-500.0,0.00025989,2]
[388334125,1759102290754,-500.0,0.00025989,2]
[388334126,1759102290781,-500.0,0.00025989,2]
[388334127,1759102290809,-451.91310486,0.00025989,2]
[388334128,1759102290836,-500.0,0.00025989,2]
[388334129,1759102290863,-500.0,0.00025989,2]
[388334130,1759102290891,-175.3333661,0.00025989,2]
[388334131,1759102291054,-324.6666339,0.00025989,2]
[388334132,1759102291082,-500.0,0.00025989,2]
[388334133,1759102291110,-500.0,0.00025989,2]
[388334134,1759102291139,-500.0,0.00025989,2]
[388334135,1759102291167,-500.0,0.00025989,2]
[388334136,1759102291194,-500.0,0.00025989,2]
[388334137,1759102291222,-500.0,0.00025989,2]
[388334138,1759102291248,-500.0,0.00025989,2]
[388334139,1759102291276,-482.58598412,0.00025989,2]
[388334140,1759102291305,-500.0,0.00025989,2]
[388334159,1759102681519,153.69,0.00018182,2]
[388334160,1759102681818,153.69,0.00018182,2]
[388334161,1759102682130,153.66,0.00018182,2]
[388334164,1759102794421,213.37,0.00025,2]
[388334165,1759103060309,320.0,0.00025205,2]
[388334166,1759103370133,-191.28117888,0.00025873,2]
[388334175,1759103431890,-187.32973092,0.00025863,2]
[388334176,1759103431899,-187.32973091,0.00025866,2]
[388334177,1759103431908,-187.32973091,0.00025869,2]
[388334178,1759103431917,-473.26080726,0.00025873,2]
[388334179,1759103431931,-1612.19985065,0.00025873,2]
[388334180,1759103431940,-3715.37351188,0.00025879,2]
[388334181,1759103431949,-1200.0,0.00025952,2]
[388334182,1759103431959,-282.0,0.00025953,2]
[388334183,1759103431968,-300.0,0.00025953,2]
[388334184,1759103431977,-300.0,0.00025953,2]
[388334185,1759103431986,-264.04,0.00025953,10]
[388334186,1759103431996,-2128.13,0.00025954,3]
[388334187,1759103432004,-1317.69,0.00025954,3]
[388334188,1759103432013,-658.85,0.00025954,3]
[388334189,1759103432022,-329.42,0.00025954,3]
[388334190,1759103432031,-164.71,0.00025954,3]
[388334191,1759103432040,-494.16,0.00025954,3]
[388334192,1759103432049,-276.43342764,0.00025962,2]
[388334193,1759103432058,-500.0,0.00025962,2]
[388334194,1759103432067,-500.0,0.00025962,2]
[388334195,1759103432076,-500.0,0.00025962,2]
[388334196,1759103432086,-500.0,0.00025962,2]
[388334197,1759103432095,-500.0,0.00025962,2]
[388334198,1759103432104,-500.0,0.00025962,2]
[388334199,1759103432113,-203.65579168,0.00025962,2]
[388334332,1759103435242,358.44088,0.00024967,2]
[388334333,1759103437645,-412.25,0.00025953,10]
[388334334,1759103437655,-296.34420832,0.00025962,2]
[388334335,1759103437664,-500.0,0.00025962,2]
[388334336,1759103437674,-500.0,0.00025962,2]
[388334337,1759103437684,-500.0,0.00025962,2]
[388334338,1759103437694,-550.66977927,0.00025962,2]
[388334339,1759103437703,-500.0,0.00025962,2]
[388334340,1759103437714,-500.0,0.00025962,2]
[388334341,1759103437723,-429.90344984,0.00025962,2]
[388334342,1759103437733,-500.0,0.00025962,2]
[388334343,1759103437742,-500.0,0.00025962,2]
[388334344,1759103437751,-500.0,0.00025962,2]
[388334345,1759103437760,-500.0,0.00025962,2]
[388334346,1759103437769,-500.0,0.00025962,2]
[388334347,1759103437778,-500.0,0.00025962,2]
[388334348,1759103437788,-500.0,0.00025962,2]
[388334349,1759103437797,-500.0,0.00025962,2]
[388334350,1759103437806,-500.0,0.00025962,2]
[388334351,1759103437815,-500.0,0.00025962,2]
[388334352,1759103437824,-500.0,0.00025962,2]
[388334353,1759103437833,-500.0,0.00025962,2]
[388334354,1759103437842,-500.0,0.00025962,2]
[388334355,1759103437851,-500.0,0.00025962,2]
[388334356,1759103437860,-500.0,0.00025962,2]
[388334357,1759103437869,-500.0,0.00025962,2]
[388334358,1759103437878,-500.0,0.00025962,2]
[388334359,1759103437892,-500.0,0.00025962,2]
[388334360,1759103437902,-500.0,0.00025962,2]
[388334361,1759103437911,-262.66056381,0.00025962,2]
[388334362,1759103437920,-500.0,0.00025962,2]
[388334363,1759103437931,-500.0,0.00025962,2]
[388334364,1759103437940,-500.0,0.00025962,2]
[388334365,1759103437949,-500.0,0.00025962,2]
[388334366,1759103437960,-500.0,0.00025962,2]
[388334367,1759103437970,-500.0,0.00025962,2]
[388334368,1759103437980,-498.25859841,0.00025962,2]
[388334369,1759103437989,-500.0,0.00025962,2]
[388334370,1759103437999,-500.0,0.00025962,2]
[388334371,1759103438008,-500.0,0.00025962,2]
[388334372,1759103438018,-500.0,0.00025962,2]
[388334373,1759103438027,-500.0,0.00025962,2]
[388334374,1759103438037,-500.0,0.00025962,2]
[388334375,1759103438046,-500.0,0.00025962,2]
[388334376,1759103438055,-500.0,0.00025962,2]
[388334377,1759103438064,-539.28087421,0.00025962,2]
[388334378,1759103438074,-500.0,0.00025962,2]
[388334379,1759103438083,-500.0,0.00025962,2]
[388334380,1759103438092,-500.0,0.00025962,2]
[388334381,1759103438101,-500.0,0.00025962,2]
[388334382,1759103438110,-500.0,0.00025962,2]
[388334383,1759103438119,-500.0,0.00025962,2]
[388334384,1759103438128,-500.0,0.00025962,2]
[388334385,1759103438138,-500.0,0.00025962,2]
[388334386,1759103438147,-500.0,0.00025962,2]
[388334387,1759103438155,-500.0,0.00025962,2]
[388334388,1759103438164,-500.0,0.00025962,2]
[388334389,1759103438173,-500.0,0.00025962,2]
[388334390,1759103438182,-500.0,0.00025962,2]
[388334391,1759103438191,-500.0,0.00025962,2]
[388334392,1759103438200,-500.0,0.00025962,2]
[388334393,1759103438209,-500.0,0.00025962,2]
[388334394,1759103438218,-347.23341462,0.00025962,2]
[388334395,1759103438227,-643.78734027,0.00025962,2]
[388334396,1759103438236,-1497.27905187,0.00025962,2]
[388334397,1759103438244,-1497.27905187,0.00025962,2]
[388334398,1759103438253,-1497.27905187,0.00025962,2]
[388334399,1759103438262,-1497.27905187,0.00025962,2]
[388334400,1759103438271,-1497.27905187,0.00025962,2]
[388334401,1759103438279,-1497.27905187,0.00025962,2]
[388334402,1759103438288,-1497.27905187,0.00025962,2]
[388334403,1759103438297,-1497.27905187,0.00025962,2]
[388334404,1759103438306,-55220.2105736,0.00025963,2]
[388334405,1759103438315,-608.88925218,0.00025963,2]
[388334406,1759103438324,-55220.2105736,0.00025964,2]
[388334407,1759103438333,-608.88925218,0.00025964,2]
[388334408,1759103438342,-55220.2105736,0.00025969,2]
[388334409,1759103438351,-608.88925218,0.00025969,2]
[388334410,1759103438360,-1200.0,0.00025971,2]
[388334411,1759103438370,-30817.69665578,0.00025972,2]
[388334412,1759103438379,-500.0,0.00025972,2]
[388334413,1759103438389,-168.54627796,0.00025973,2]
[388334414,1759103438398,-55220.2105736,0.00025979,2]
[388334415,1759103438407,-608.88925218,0.00025979,2]
[388334416,1759103438416,-160.0,0.00025982,2]
[388334417,1759103438424,-2000.0,0.00025984,7]
[388334418,1759103438434,-2000.0,0.00025984,7]
[388334419,1759103438443,-661.98494194,0.00025984,7]
[388334420,1759103438452,-3588.9877524,0.00025989,2]
[388334421,1759103438460,-20222.1971425,0.00025989,2]
[388334422,1759103438469,-28945.0300485,0.00025989,2]
[388334423,1759103438478,-1000.0,0.00025989,2]
[388334424,1759103438487,-163.0,0.00026055,14]
[388334425,1759103438495,-395.8422726,0.00026078,2]
[388334426,1759103438504,-151.0,0.000261,15]
[388334427,1759103438513,-238.66,0.00026166,2]
[388334428,1759103438522,-151.0,0.000263,10]
[388334429,1759103438531,-151.0,0.000264,20]
[388334430,1759103438540,-151.0,0.000265,12]
[388334431,1759103438549,-3715.37351188,0.00026587,2]
[388334432,1759103438558,-151.0,0.000267,13]
[388334433,1759103438567,-261.0,0.00026757,2]
[388334434,1759103438576,-151.0,0.000268,14]
[388334435,1759103438585,-2276.74183677,0.00026898,2]
[388334436,1759103438594,-55220.2105736,0.0002693,2]
[388334437,1759103438605,-608.88925218,0.0002693,2]
[388334438,1759103438614,-3715.37351188,0.0002694,2]
[388334439,1759103438623,-500.0,0.00026977,2]
[388334440,1759103438632,-37157.62960204,0.0002699,2]
[388334441,1759103438641,-151.0,0.00027,13]
[388334442,1759103438650,-2700.84977919,0.00027095,5]
[388334443,1759103438659,-975.42124194,0.00027095,5]
[388334444,1759103438668,-151.0,0.000271,18]
[388334445,1759103438677,-151.0,0.00027176,2]
[388334446,1759103438687,-157.536873,0.00027176,7]
[388334447,1759103438695,-151.778399,0.00027176,7]
[388334448,1759103438704,-55220.2105736,0.00027176,2]
[388334449,1759103438712,-608.88925218,0.00027176,2]
[388334450,1759103438722,-221.26024643,0.00027186,2]
[388334451,1759103438730,-11886.27657634,0.00027186,2]
[388334452,1759103438740,-261.0,0.00027286,2]
[388334453,1759103438749,-162.97,0.00027286,2]
[388334454,1759103438758,-162.97,0.00027286,2]
[388334455,1759103438767,-162.97,0.00027286,2]
[388334456,1759103438776,-162.97,0.00027286,2]
[388334457,1759103438785,-162.97,0.00027286,2]
[388334458,1759103438794,-3715.37351188,0.00027294,2]
[388334459,1759103438803,-151.0,0.000273,13]
[388334460,1759103438811,-4256.26,0.00027324,3]
[388334461,1759103438821,-2635.38,0.00027324,3]
[388334462,1759103438829,-1317.7,0.00027324,3]
[388334463,1759103438838,-658.84,0.00027324,3]
[388334464,1759103438847,-329.42,0.00027324,3]
[388334465,1759103438856,-608.88925218,0.00027329,2]
[388334466,1759103438866,-1826.66775654,0.00027374,2]
[388334467,1759103438875,-608.88925218,0.00027374,2]
[388334468,1759103438885,-1217.77850436,0.00027384,2]
[388334469,1759103438896,-151.0,0.00027384,7]
[388334470,1759103438905,-151.0,0.00027384,7]
[388334471,1759103438914,-151.0,0.00027384,7]
[388334472,1759103438922,-151.0,0.00027384,7]
[388334473,1759103438932,-151.0,0.00027384,7]
[388334474,1759103438941,-151.0,0.00027384,7]
[388334475,1759103438950,-151.0,0.00027384,7]
[388334476,1759103438959,-151.0,0.00027384,7]
[388334477,1759103438968,-154.041592,0.00027384,7]
[388334478,1759103438978,-151.0,0.00027384,7]
[388334479,1759103438988,-151.0,0.00027384,7]
[388334480,1759103438997,-189.35579204,0.00027384,7]
[388334481,1759103439006,-151.0,0.00027384,7]
[388334482,1759103439015,-241.643577,0.00027384,7]
[388334483,1759103439024,-153.737168,0.00027384,7]
[388334484,1759103439034,-151.0,0.00027384,7]
[388334485,1759103439044,-233.82138094,0.00027384,7]
[388334486,1759103439055,-4262.22476526,0.00027387,2]
[388334487,1759103439065,-90690.6585507,0.00027394,2]
[388334488,1759103439074,-151.0,0.00027394,7]
[388334489,1759103439083,-151.0,0.00027394,7]
[388334490,1759103439092,-151.0,0.00027394,7]
[388334491,1759103439101,-480.0,0.00027397,7]
[388334492,1759103439110,-641.72,0.00027397,7]
[388334493,1759103439119,-788.32,0.00027397,7]
[388334494,1759103439128,-480.0,0.00027397,7]
[388334495,1759103439137,-480.0,0.00027397,7]
[388334496,1759103439146,-480.0,0.00027397,7]
[388334497,1759103439156,-480.0,0.00027397,7]
[388334498,1759103439166,-497.05,0.00027397,7]
[388334499,1759103439176,-480.0,0.00027397,7]
[388334500,1759103439186,-480.0,0.00027397,7]
[388334501,1759103439195,-480.0,0.00027397,7]
[388334502,1759103439204,-480.0,0.00027397,7]
[388334503,1759103439213,-822.62,0.00027397,7]
[388334504,1759103439223,-480.0,0.00027397,7]
[388334505,1759103439232,-500.0,0.00027397,7]
[388334506,1759103439241,-480.0,0.00027397,7]
[388334507,1759103439250,-480.0,0.00027397,7]
[388334508,1759103439259,-265.2910514,0.00027397,7]
[388334509,1759103439268,-480.0,0.00027397,7]
[388334510,1759103439277,-480.0,0.00027397,7]
[388334511,1759103439286,-480.0,0.00027397,7]
[388334512,1759103439296,-480.0,0.00027397,7]
[388334513,1759103439304,-680.72,0.00027397,7]
[388334515,1759103439313,-500.0,0.00027397,7]
[388334517,1759103439322,-924.85,0.00027397,7]
[388334518,1759103439331,-565.21,0.00027397,7]
[388334519,1759103439340,-480.0,0.00027397,7]
[388334520,1759103439349,-480.0,0.00027397,7]
[388334521,1759103439358,-480.0,0.00027397,7]
[388334522,1759103439367,-535.39,0.00027397,7]
[388334523,1759103439376,-499.82,0.00027397,7]
[388334524,1759103439385,-478.14170649,0.00027397,7]
[388334525,1759103439394,-480.0,0.00027397,7]
[388334526,1759103439403,-484.25039767,0.00027397,7]
[388334527,1759103439412,-480.0,0.00027397,7]
[388334528,1759103439422,-481.58131698,0.00027397,7]
[388334529,1759103439431,-670.03,0.00027397,7]
[388334530,1759103439440,-480.0,0.00027397,7]
[388334531,1759103439449,-558.65587692,0.00027397,7]
[388334532,1759103439459,-224.09113106,0.00027397,7]
[388334533,1759103439468,-480.0,0.00027397,7]
[388334534,1759103439477,-480.0,0.00027397,7]
[388334535,1759103439486,-480.0,0.00027397,7]
[388334536,1759103439495,-516.11,0.00027397,7]
[388334537,1759103439504,-480.0,0.00027397,7]
[388334538,1759103439513,-480.0,0.00027397,7]
[388334539,1759103439522,-480.0,0.00027397,7]
[388334540,1759103439531,-480.0,0.00027397,7]
[388334541,1759103439540,-480.0,0.00027397,7]
[388334542,1759103439549,-480.0,0.00027397,7]
[388334543,1759103439558,-626.56,0.00027397,7]
[388334544,1759103439567,-480.0,0.00027397,7]
[388334545,1759103439576,-480.0,0.00027397,7]
[388334546,1759103439585,-515.84,0.00027397,7]
[388334547,1759103439594,-360.23164017,0.00027397,7]
[388334548,1759103439603,-853.44,0.00027397,7]
[388334549,1759103439612,-616.75,0.00027397,7]
[388334550,1759103439621,-151.0,0.00027397,7]
[388334551,1759103439630,-480.0,0.00027397,7]
[388334552,1759103439639,-591.3,0.00027397,7]
[388334553,1759103439648,-480.0,0.00027397,7]
[388334554,1759103439657,-480.0,0.00027397,7]
[388334555,1759103439666,-480.0,0.00027397,7]
[388334556,1759103439675,-480.0,0.00027397,7]
[388334557,1759103439684,-592.77,0.00027397,7]
[388334558,1759103439692,-480.0,0.00027397,7]
[388334559,1759103439701,-513.59,0.00027397,7]
[388334560,1759103439711,-480.0,0.00027397,7]
[388334561,1759103439719,-580.32,0.00027397,7]
[388334562,1759103439728,-1100.81,0.00027397,7]
[388334563,1759103439737,-662.87,0.00027397,7]
[388334564,1759103439746,-480.0,0.00027397,7]
[388334565,1759103439755,-480.0,0.00027397,7]
[388334566,1759103439764,-839.69,0.00027397,7]
[388334567,1759103439773,-480.0,0.00027397,7]
[388334568,1759103439782,-480.0,0.00027397,7]
[388334569,1759103439791,-480.0,0.00027397,7]
[388334570,1759103439800,-480.0,0.00027397,7]
[388334571,1759103439808,-480.0,0.00027397,7]
[388334572,1759103439817,-480.0,0.00027397,7]
[388334573,1759103439826,-480.0,0.00027397,7]
[388334574,1759103439835,-480.0,0.00027397,7]
[388334575,1759103439843,-480.0,0.00027397,7]
[388334576,1759103439852,-550.92,0.00027397,7]
[388334577,1759103439861,-873.96,0.00027397,7]
[388334578,1759103439870,-480.0,0.00027397,7]
[388334579,1759103439879,-480.0,0.00027397,7]
[388334580,1759103439892,-480.0,0.00027397,7]
[388334581,1759103439901,-480.0,0.00027397,7]
[388334582,1759103439910,-480.0,0.00027397,7]
[388334583,1759103439919,-777.05,0.00027397,7]
[388334584,1759103439928,-480.0,0.00027397,7]
[388334585,1759103439938,-784.66,0.00027397,7]
[388334586,1759103439946,-735.1,0.00027397,7]
[388334587,1759103439956,-480.0,0.00027397,7]
[388334588,1759103439968,-993.78,0.00027397,7]
[388334589,1759103439977,-151.23805793,0.00027397,7]
[388334590,1759103439986,-480.0,0.00027397,7]
[388334591,1759103439996,-480.0,0.00027397,7]
[388334592,1759103440005,-1057.12,0.00027397,7]
[388334593,1759103440014,-589.58,0.00027397,7]
[388334594,1759103440023,-480.0,0.00027397,7]
[388334595,1759103440032,-1130.79,0.00027397,7]
[388334596,1759103440041,-480.0,0.00027397,7]
[388334597,1759103440050,-1262.46,0.00027397,7]